[Event "Late Titled Tuesday Blitz February 8 2022"]
[White "Ardila, Oscar Humberto"]
[Black "Ishbaev, Alibek"]
[WhiteFideId "4404742"]
[BlackFideId "14205017"]
[WhiteElo "1898"]
[BlackElo "2374"]
[Result "1/2-1/2"]
[Round "06"]
[TimeControl "180+1"]
[Date "2022.02.09"]
[WhiteClock "0:00:13"]
[BlackClock "0:01:10"]

1. d4 {[%clk 0:02:49]}  g6 {[%clk 0:02:59]} 2. c4 {[%clk 0:02:48]}  Bg7 {[%clk 0:03:00]} 3. Nc3 {[%clk 0:02:48]}  c5 {[%clk 0:03:00]} 4. Nf3 {[%clk 0:02:40]}  cxd4 {[%clk 0:03:00]} 5. Nxd4 {[%clk 0:02:41]}  Nc6 {[%clk 0:03:01]} 6. e3 {[%clk 0:02:40]}  Nf6 {[%clk 0:03:00]} 7. Be2 {[%clk 0:02:39]}  O-O {[%clk 0:02:59]} 8. O-O {[%clk 0:02:39]}  Nxd4 {[%clk 0:02:59]} 9. exd4 {[%clk 0:02:39]}  d5 {[%clk 0:02:59]} 10. c5 {[%clk 0:02:38]}  b6 {[%clk 0:02:59]} 11. b4 {[%clk 0:02:36]}  a5 {[%clk 0:03:00]} 12. Ba3 {[%clk 0:02:24]}  axb4 {[%clk 0:02:59]} 13. Bxb4 {[%clk 0:02:24]}  bxc5 {[%clk 0:02:55]} 14. Bxc5 {[%clk 0:02:24]}  Nd7 {[%clk 0:02:51]} 15. Bb4 {[%clk 0:01:52]}  Bb7 {[%clk 0:02:48]} 16. Rb1 {[%clk 0:01:42]}  Re8 {[%clk 0:02:39]} 17. Bb5 {[%clk 0:01:40]}  e6 {[%clk 0:02:37]} 18. a4 {[%clk 0:01:34]}  Ba6 {[%clk 0:02:36]} 19. Qd3 {[%clk 0:01:31]}  Bxb5 {[%clk 0:02:35]} 20. axb5 {[%clk 0:01:30]}  Nb6 {[%clk 0:02:33]} 21. Bc5 {[%clk 0:01:29]}  Na4 {[%clk 0:02:25]} 22. Nxa4 {[%clk 0:01:28]}  Rxa4 {[%clk 0:02:26]} 23. b6 {[%clk 0:01:27]}  Qd7 {[%clk 0:02:22]} 24. b7 {[%clk 0:01:20]}  Rb8 {[%clk 0:02:09]} 25. Qb3 {[%clk 0:01:19]}  Bxd4 {[%clk 0:02:03]} 26. Bxd4 {[%clk 0:01:15]}  Rxd4 {[%clk 0:02:04]} 27. Rfc1 {[%clk 0:01:15]}  Rc4 {[%clk 0:02:00]} 28. Rxc4 {[%clk 0:01:12]}  dxc4 {[%clk 0:02:01]} 29. Qxc4 {[%clk 0:01:11]}  Rxb7 {[%clk 0:02:00]} 30. Rc1 {[%clk 0:01:06]}  h5 {[%clk 0:01:54]} 31. h3 {[%clk 0:01:06]}  Rb2 {[%clk 0:01:51]} 32. Qc8+ {[%clk 0:00:56]}  Qxc8 {[%clk 0:01:49]} 33. Rxc8+ {[%clk 0:00:57]}  Kg7 {[%clk 0:01:49]} 34. g3 {[%clk 0:00:57]}  h4 {[%clk 0:01:48]} 35. g4 {[%clk 0:00:56]}  g5 {[%clk 0:01:45]} 36. Kg2 {[%clk 0:00:55]}  Rb4 {[%clk 0:01:41]} 37. Rc5 {[%clk 0:00:51]}  Kg6 {[%clk 0:01:40]} 38. Rc7 {[%clk 0:00:51]}  f5 {[%clk 0:01:39]} 39. gxf5+ {[%clk 0:00:46]}  exf5 {[%clk 0:01:40]} 40. Rc6+ {[%clk 0:00:46]}  Kh5 {[%clk 0:01:38]} 41. Rc8 {[%clk 0:00:45]}  Rb6 {[%clk 0:01:32]} 42. Rh8+ {[%clk 0:00:43]}  Rh6 {[%clk 0:01:32]} 43. Rf8 {[%clk 0:00:41]}  Kg6 {[%clk 0:01:32]} 44. Rg8+ {[%clk 0:00:41]}  Kf6 {[%clk 0:01:32]} 45. Rf8+ {[%clk 0:00:40]}  Ke5 {[%clk 0:01:32]} 46. Re8+ {[%clk 0:00:40]}  Kf4 {[%clk 0:01:32]} 47. Rb8 {[%clk 0:00:40]}  g4 {[%clk 0:01:26]} 48. Rb4+ {[%clk 0:00:38]}  Kg5 {[%clk 0:01:24]} 49. Rb8 {[%clk 0:00:38]}  Rg6 {[%clk 0:01:22]} 50. Rb4 {[%clk 0:00:32]}  Kh5 {[%clk 0:01:15]} 51. Rb5 {[%clk 0:00:26]}  Rg5 {[%clk 0:01:15]} 52. Rb8 {[%clk 0:00:25]}  g3 {[%clk 0:01:14]} 53. Rh8+ {[%clk 0:00:17]}  Kg6 {[%clk 0:01:13]} 54. Rg8+ {[%clk 0:00:17]}  Kf6 {[%clk 0:01:13]} 55. Rxg5 {[%clk 0:00:16]}  Kxg5 {[%clk 0:01:12]} 56. fxg3 {[%clk 0:00:17]}  Kh5 {[%clk 0:01:05]} 57. Kf3 {[%clk 0:00:15]}  Kg5 {[%clk 0:01:04]} 58. Kf2 {[%clk 0:00:13]}  f4 {[%clk 0:01:03]} 59. gxf4+ {[%clk 0:00:10]}  Kxf4 {[%clk 0:01:04]} 60. Kg2 {[%clk 0:00:10]}  Ke3 {[%clk 0:01:04]} 61. Kg1 {[%clk 0:00:10]}  Kf3 {[%clk 0:01:05]} 62. Kh2 {[%clk 0:00:10]}  Kf2 {[%clk 0:01:06]} 63. Kh1 {[%clk 0:00:11]}  Kg3 {[%clk 0:01:07]} 64. Kg1 {[%clk 0:00:11]}  Kxh3 {[%clk 0:01:08]} 65. Kh1 {[%clk 0:00:12]}  Kg3 {[%clk 0:01:09]} 66. Kg1 {[%clk 0:00:12]}  h3 {[%clk 0:01:10]} 67. Kh1 {[%clk 0:00:13]}  h2 {[%clk 0:01:10]} 1/2-1/2


[Site "https://www.chess.com"]

[Event "Late Titled Tuesday Blitz February 8 2022"]
[White "Bauer, Thomas"]
[Black "Dias, Joao Batista"]
[WhiteFideId "1639293"]
[BlackFideId "2108240"]
[WhiteElo "2220"]
[BlackElo "1898"]
[Result "1-0"]
[Round "06"]
[TimeControl "180+1"]
[Date "2022.02.09"]
[WhiteClock "0:00:22"]
[BlackClock "0:00:02"]

1. d4 {[%clk 0:02:52]}  d5 {[%clk 0:02:59]} 2. Nf3 {[%clk 0:02:49]}  c6 {[%clk 0:02:59]} 3. Bf4 {[%clk 0:02:40]}  Bf5 {[%clk 0:02:59]} 4. e3 {[%clk 0:02:37]}  e6 {[%clk 0:02:59]} 5. Be2 {[%clk 0:02:37]}  Nf6 {[%clk 0:02:58]} 6. O-O {[%clk 0:02:38]}  Bd6 {[%clk 0:02:57]} 7. Bxd6 {[%clk 0:02:37]}  Qxd6 {[%clk 0:02:57]} 8. Nbd2 {[%clk 0:02:31]}  O-O {[%clk 0:02:54]} 9. c4 {[%clk 0:02:31]}  Nbd7 {[%clk 0:02:52]} 10. Rc1 {[%clk 0:02:30]}  Rac8 {[%clk 0:02:51]} 11. Nh4 {[%clk 0:02:29]}  Bg6 {[%clk 0:02:48]} 12. f4 {[%clk 0:02:23]}  Qe7 {[%clk 0:02:37]} 13. Nxg6 {[%clk 0:02:18]}  hxg6 {[%clk 0:02:36]} 14. Bf3 {[%clk 0:02:16]}  Rfd8 {[%clk 0:02:32]} 15. a3 {[%clk 0:02:09]}  a6 {[%clk 0:02:31]} 16. Qb3 {[%clk 0:02:09]}  b5 {[%clk 0:02:31]} 17. c5 {[%clk 0:01:59]}  Nf8 {[%clk 0:02:15]} 18. Kh1 {[%clk 0:01:59]}  N8h7 {[%clk 0:02:14]} 19. g4 {[%clk 0:01:58]}  g5 {[%clk 0:02:11]} 20. Rf2 {[%clk 0:01:49]}  g6 {[%clk 0:02:11]} 21. Rcf1 {[%clk 0:01:46]}  Kg7 {[%clk 0:02:11]} 22. Bd1 {[%clk 0:01:44]}  Rf8 {[%clk 0:02:04]} 23. Qd3 {[%clk 0:01:33]}  gxf4 {[%clk 0:02:03]} 24. exf4 {[%clk 0:01:31]}  Nd7 {[%clk 0:01:56]} 25. Nf3 {[%clk 0:01:29]}  Rh8 {[%clk 0:01:53]} 26. Bc2 {[%clk 0:01:23]}  Qf6 {[%clk 0:01:49]} 27. Ne5 {[%clk 0:01:22]}  Qe7 {[%clk 0:01:36]} 28. f5 {[%clk 0:01:14]}  Nxe5 {[%clk 0:01:28]} 29. dxe5 {[%clk 0:01:14]}  exf5 {[%clk 0:01:29]} 30. gxf5 {[%clk 0:01:13]}  Qxe5 {[%clk 0:01:18]} 31. fxg6 {[%clk 0:01:13]}  Ng5 {[%clk 0:01:12]} 32. gxf7 {[%clk 0:01:04]}  Qe4+ {[%clk 0:01:06]} 33. Rg2 {[%clk 0:01:00]}  Kf8 {[%clk 0:00:41]} 34. Qg3 {[%clk 0:00:43]}  Qxg2+ {[%clk 0:00:13]} 35. Qxg2 {[%clk 0:00:40]}  Nxf7 {[%clk 0:00:12]} 36. Qg3 {[%clk 0:00:31]}  Re8 {[%clk 0:00:06]} 37. Qd6+ {[%clk 0:00:28]}  Re7 {[%clk 0:00:06]} 38. Qxc6 {[%clk 0:00:22]}  Rh7 {[%clk 0:00:02]} 39. Bxh7 {[%clk 0:00:22]} 1-0


[Site "https://www.chess.com"]

[Event "Late Titled Tuesday Blitz February 8 2022"]
[White "Bernat, David"]
[Black "Baches Garcia, Guillermo"]
[WhiteFideId "2099225"]
[BlackFideId "2209764"]
[WhiteElo "2288"]
[BlackElo "2445"]
[Result "1/2-1/2"]
[Round "06"]
[TimeControl "180+1"]
[Date "2022.02.09"]
[WhiteClock "0:00:07"]
[BlackClock "0:00:15"]

1. c4 {[%clk 0:03:00]}  e5 {[%clk 0:02:59]} 2. g3 {[%clk 0:03:00]}  Nf6 {[%clk 0:03:00]} 3. Bg2 {[%clk 0:03:00]}  d5 {[%clk 0:03:00]} 4. cxd5 {[%clk 0:03:01]}  Nxd5 {[%clk 0:03:01]} 5. Nc3 {[%clk 0:03:02]}  Nb6 {[%clk 0:03:01]} 6. Nf3 {[%clk 0:03:02]}  Nc6 {[%clk 0:03:01]} 7. d3 {[%clk 0:03:02]}  Be7 {[%clk 0:03:01]} 8. O-O {[%clk 0:03:02]}  O-O {[%clk 0:03:01]} 9. a3 {[%clk 0:03:03]}  Re8 {[%clk 0:03:02]} 10. b4 {[%clk 0:03:03]}  Bf8 {[%clk 0:03:02]} 11. Bb2 {[%clk 0:03:02]}  a5 {[%clk 0:03:02]} 12. b5 {[%clk 0:03:02]}  Nd4 {[%clk 0:03:03]} 13. e3 {[%clk 0:02:35]}  Nf5 {[%clk 0:03:01]} 14. Ne4 {[%clk 0:02:29]}  f6 {[%clk 0:02:50]} 15. Rc1 {[%clk 0:02:25]}  a4 {[%clk 0:02:44]} 16. Qc2 {[%clk 0:02:20]}  Re7 {[%clk 0:02:33]} 17. Rfd1 {[%clk 0:02:15]}  Nd6 {[%clk 0:02:23]} 18. Nxd6 {[%clk 0:02:07]}  Qxd6 {[%clk 0:02:19]} 19. e4 {[%clk 0:02:00]}  Be6 {[%clk 0:02:09]} 20. Qe2 {[%clk 0:01:23]}  Bb3 {[%clk 0:02:04]} 21. Rd2 {[%clk 0:01:22]}  Qe6 {[%clk 0:01:47]} 22. d4 {[%clk 0:01:20]}  Bc4 {[%clk 0:01:39]} 23. Qe3 {[%clk 0:01:17]}  exd4 {[%clk 0:01:30]} 24. Nxd4 {[%clk 0:01:02]}  Qf7 {[%clk 0:01:30]} 25. Nf5 {[%clk 0:00:55]}  Rd7 {[%clk 0:01:21]} 26. Rxd7 {[%clk 0:00:49]}  Qxd7 {[%clk 0:01:15]} 27. Bd4 {[%clk 0:00:49]}  Bxb5 {[%clk 0:01:04]} 28. Bh3 {[%clk 0:00:40]}  Qf7 {[%clk 0:00:55]} 29. Bxb6 {[%clk 0:00:30]}  cxb6 {[%clk 0:00:56]} 30. Qxb6 {[%clk 0:00:29]}  Bc6 {[%clk 0:00:53]} 31. Nd4 {[%clk 0:00:18]}  Re8 {[%clk 0:00:27]} 32. Nxc6 {[%clk 0:00:15]}  bxc6 {[%clk 0:00:28]} 33. Qxc6 {[%clk 0:00:16]}  Bxa3 {[%clk 0:00:27]} 34. Rd1 {[%clk 0:00:14]}  Bf8 {[%clk 0:00:21]} 35. Qxa4 {[%clk 0:00:12]}  g6 {[%clk 0:00:19]} 36. Qc6 {[%clk 0:00:09]}  Re7 {[%clk 0:00:18]} 37. Rd8 {[%clk 0:00:07]}  Kg7 {[%clk 0:00:18]} 38. Rd7 {[%clk 0:00:06]}  Rxd7 {[%clk 0:00:18]} 39. Bxd7 {[%clk 0:00:05]}  Qe7 {[%clk 0:00:18]} 40. Be6 {[%clk 0:00:03]}  Qd6 {[%clk 0:00:17]} 41. Qxd6 {[%clk 0:00:03]}  Bxd6 {[%clk 0:00:16]} 42. Bd5 {[%clk 0:00:04]}  Be5 {[%clk 0:00:16]} 43. Kg2 {[%clk 0:00:05]}  g5 {[%clk 0:00:16]} 44. f3 {[%clk 0:00:05]}  h5 {[%clk 0:00:16]} 45. Kf2 {[%clk 0:00:05]}  h4 {[%clk 0:00:17]} 46. gxh4 {[%clk 0:00:05]}  gxh4 {[%clk 0:00:15]} 47. h3 {[%clk 0:00:05]}  Kh6 {[%clk 0:00:14]} 48. Ke3 {[%clk 0:00:06]}  Kg5 {[%clk 0:00:14]} 49. Be6 {[%clk 0:00:06]}  Bf4+ {[%clk 0:00:14]} 50. Kd4 {[%clk 0:00:06]}  Be5+ {[%clk 0:00:15]} 51. Ke3 {[%clk 0:00:06]}  Bf4+ {[%clk 0:00:15]} 52. Kd4 {[%clk 0:00:07]}  Be5+ {[%clk 0:00:15]} 53. Ke3 {[%clk 0:00:07]} 1/2-1/2


[Site "https://www.chess.com"]

[Event "Late Titled Tuesday Blitz February 8 2022"]
[White "Bettalli, Francesco"]
[Black "Janaszak, Dawid"]
[WhiteFideId "2816453"]
[BlackFideId "1119206"]
[WhiteElo "2216"]
[BlackElo "2199"]
[Result "0-1"]
[Round "06"]
[TimeControl "180+1"]
[Date "2022.02.09"]
[WhiteClock "0:01:32"]
[BlackClock "0:01:23"]

1. d4 {[%clk 0:03:00]}  Nf6 {[%clk 0:02:59]} 2. Nc3 {[%clk 0:03:01]}  b5 {[%clk 0:02:52]} 3. Nxb5 {[%clk 0:03:00]}  Bb7 {[%clk 0:02:52]} 4. f3 {[%clk 0:02:59]}  e5 {[%clk 0:02:50]} 5. dxe5 {[%clk 0:02:57]}  Nh5 {[%clk 0:02:49]} 6. g3 {[%clk 0:02:52]}  Bc5 {[%clk 0:02:49]} 7. e3 {[%clk 0:02:47]}  Nc6 {[%clk 0:02:41]} 8. Bg2 {[%clk 0:02:34]}  Nxe5 {[%clk 0:02:38]} 9. Nh3 {[%clk 0:02:33]}  a6 {[%clk 0:02:28]} 10. Nc3 {[%clk 0:02:33]}  d5 {[%clk 0:02:18]} 11. O-O {[%clk 0:02:30]}  d4 {[%clk 0:02:12]} 12. exd4 {[%clk 0:02:30]}  Qxd4+ {[%clk 0:02:12]} 13. Qxd4 {[%clk 0:02:27]}  Bxd4+ {[%clk 0:02:13]} 14. Kh1 {[%clk 0:02:27]}  O-O-O {[%clk 0:02:09]} 15. Nf4 {[%clk 0:02:25]}  Nf6 {[%clk 0:02:06]} 16. Nfe2 {[%clk 0:02:19]}  Bb6 {[%clk 0:02:03]} 17. Bg5 {[%clk 0:02:18]}  Nc4 {[%clk 0:02:01]} 18. b3 {[%clk 0:02:12]}  Nd2 {[%clk 0:01:57]} 19. Bxd2 {[%clk 0:02:06]}  Rxd2 {[%clk 0:01:58]} 20. Rac1 {[%clk 0:02:06]}  Re8 {[%clk 0:01:56]} 21. Nf4 {[%clk 0:02:03]}  g5 {[%clk 0:01:47]} 22. Nd3 {[%clk 0:01:59]}  Ng4 {[%clk 0:01:41]} 23. Rfd1 {[%clk 0:01:45]}  Rxd3 {[%clk 0:01:24]} 24. Rxd3 {[%clk 0:01:32]}  Nf2+ {[%clk 0:01:23]} 0-1


[Site "https://www.chess.com"]

[Event "Late Titled Tuesday Blitz February 8 2022"]
[White "Beulen, Marcel"]
[Black "Villegas, Pierre"]
[WhiteFideId "1001450"]
[BlackFideId "654183"]
[WhiteElo "2362"]
[BlackElo "2410"]
[Result "1/2-1/2"]
[Round "06"]
[TimeControl "180+1"]
[Date "2022.02.09"]
[WhiteClock "0:00:38"]
[BlackClock "0:00:20"]

1. e4 {[%clk 0:03:00]}  c6 {[%clk 0:03:00]} 2. Nc3 {[%clk 0:02:59]}  d5 {[%clk 0:03:00]} 3. f4 {[%clk 0:02:59]}  dxe4 {[%clk 0:02:58]} 4. Nxe4 {[%clk 0:03:00]}  Nf6 {[%clk 0:02:56]} 5. Nf2 {[%clk 0:03:00]}  g6 {[%clk 0:02:50]} 6. Nf3 {[%clk 0:03:00]}  Bg7 {[%clk 0:02:50]} 7. g3 {[%clk 0:03:01]}  O-O {[%clk 0:02:50]} 8. Bg2 {[%clk 0:03:01]}  c5 {[%clk 0:02:42]} 9. O-O {[%clk 0:03:01]}  Nc6 {[%clk 0:02:42]} 10. d3 {[%clk 0:03:01]}  Qc7 {[%clk 0:02:35]} 11. Be3 {[%clk 0:02:56]}  b6 {[%clk 0:02:19]} 12. c3 {[%clk 0:02:52]}  Rd8 {[%clk 0:02:07]} 13. Qe2 {[%clk 0:02:51]}  Bb7 {[%clk 0:01:43]} 14. Rad1 {[%clk 0:02:49]}  e6 {[%clk 0:01:39]} 15. Rfe1 {[%clk 0:02:48]}  Rd7 {[%clk 0:01:38]} 16. a3 {[%clk 0:02:45]}  a5 {[%clk 0:01:36]} 17. h3 {[%clk 0:02:44]}  a4 {[%clk 0:01:35]} 18. Kh2 {[%clk 0:02:44]}  Rad8 {[%clk 0:01:31]} 19. Rd2 {[%clk 0:02:38]}  Na5 {[%clk 0:01:27]} 20. Rdd1 {[%clk 0:02:31]}  Nd5 {[%clk 0:01:09]} 21. Ne4 {[%clk 0:02:17]}  Nxe3 {[%clk 0:01:07]} 22. Qxe3 {[%clk 0:02:17]}  Ba6 {[%clk 0:00:55]} 23. Bf1 {[%clk 0:02:15]}  Nc4 {[%clk 0:00:49]} 24. Qf2 {[%clk 0:02:05]}  Nd6 {[%clk 0:00:49]} 25. Nxd6 {[%clk 0:01:52]}  Rxd6 {[%clk 0:00:50]} 26. Qe3 {[%clk 0:01:43]}  Bb7 {[%clk 0:00:46]} 27. Bg2 {[%clk 0:01:39]}  Qd7 {[%clk 0:00:41]} 28. Bf1 {[%clk 0:01:29]}  Qb5 {[%clk 0:00:31]} 29. Rd2 {[%clk 0:01:23]}  Qc6 {[%clk 0:00:30]} 30. Bg2 {[%clk 0:01:21]}  Qd7 {[%clk 0:00:29]} 31. Red1 {[%clk 0:01:17]}  Qc7 {[%clk 0:00:27]} 32. d4 {[%clk 0:01:04]}  Bxf3 {[%clk 0:00:23]} 33. Bxf3 {[%clk 0:01:01]}  cxd4 {[%clk 0:00:23]} 34. cxd4 {[%clk 0:01:02]}  Qd7 {[%clk 0:00:22]} 35. d5 {[%clk 0:01:01]}  exd5 {[%clk 0:00:22]} 36. Rxd5 {[%clk 0:01:01]}  Rxd5 {[%clk 0:00:20]} 37. Rxd5 {[%clk 0:01:01]}  Qc7 {[%clk 0:00:20]} 38. Rxd8+ {[%clk 0:00:47]}  Qxd8 {[%clk 0:00:20]} 39. Bc6 {[%clk 0:00:45]}  Qd4 {[%clk 0:00:18]} 40. Qxd4 {[%clk 0:00:40]}  Bxd4 {[%clk 0:00:19]} 41. Bxa4 {[%clk 0:00:40]}  Bxb2 {[%clk 0:00:20]} 42. Bb3 {[%clk 0:00:40]}  Bxa3 {[%clk 0:00:20]} 43. g4 {[%clk 0:00:38]} 1/2-1/2


[Site "https://www.chess.com"]

[Event "Late Titled Tuesday Blitz February 8 2022"]
[White "Calcada, Lucas Galvan"]
[Black "Li, Hui"]
[WhiteFideId "22746099"]
[BlackFideId "15400310"]
[WhiteElo "1402"]
[BlackElo "1954"]
[Result "0-1"]
[Round "06"]
[TimeControl "180+1"]
[Date "2022.02.09"]
[WhiteClock "0:00:04"]
[BlackClock "0:00:04"]

1. d4 {[%clk 0:03:00]}  Nf6 {[%clk 0:02:40]} 2. c4 {[%clk 0:03:00]}  e6 {[%clk 0:02:40]} 3. Nc3 {[%clk 0:03:00]}  d5 {[%clk 0:02:41]} 4. Qc2 {[%clk 0:02:59]}  Be7 {[%clk 0:02:41]} 5. Bg5 {[%clk 0:02:59]}  O-O {[%clk 0:02:41]} 6. e3 {[%clk 0:02:59]}  h6 {[%clk 0:02:36]} 7. Bh4 {[%clk 0:02:58]}  Ne4 {[%clk 0:02:36]} 8. Bxe7 {[%clk 0:02:57]}  Qxe7 {[%clk 0:02:37]} 9. Nge2 {[%clk 0:02:54]}  c6 {[%clk 0:02:25]} 10. Nf4 {[%clk 0:02:52]}  Nd7 {[%clk 0:02:16]} 11. f3 {[%clk 0:02:41]}  Qh4+ {[%clk 0:02:02]} 12. g3 {[%clk 0:02:34]}  Nxg3 {[%clk 0:01:57]} 13. hxg3 {[%clk 0:02:33]}  Qxh1 {[%clk 0:01:42]} 14. O-O-O {[%clk 0:02:33]}  Qxf3 {[%clk 0:01:35]} 15. Ng2 {[%clk 0:01:57]}  e5 {[%clk 0:01:09]} 16. cxd5 {[%clk 0:01:39]}  exd4 {[%clk 0:01:01]} 17. exd4 {[%clk 0:01:37]}  cxd5 {[%clk 0:00:56]} 18. Nh4 {[%clk 0:01:30]}  Qxg3 {[%clk 0:00:44]} 19. Nf5 {[%clk 0:01:29]}  Qg5+ {[%clk 0:00:40]} 20. Kb1 {[%clk 0:01:28]}  Nb6 {[%clk 0:00:35]} 21. Bd3 {[%clk 0:01:24]}  Bxf5 {[%clk 0:00:29]} 22. Bxf5 {[%clk 0:01:23]}  Nc4 {[%clk 0:00:29]} 23. Nxd5 {[%clk 0:01:17]}  Ne3 {[%clk 0:00:24]} 24. Nxe3 {[%clk 0:01:16]}  Qxe3 {[%clk 0:00:24]} 25. d5 {[%clk 0:01:11]}  Rfd8 {[%clk 0:00:18]} 26. d6 {[%clk 0:01:10]}  Qe5 {[%clk 0:00:13]} 27. d7 {[%clk 0:01:07]}  a5 {[%clk 0:00:12]} 28. Rg1 {[%clk 0:01:04]}  Qf6 {[%clk 0:00:11]} 29. a4 {[%clk 0:00:55]}  b5 {[%clk 0:00:09]} 30. axb5 {[%clk 0:00:54]}  Rab8 {[%clk 0:00:09]} 31. Qc5 {[%clk 0:00:45]}  Qb6 {[%clk 0:00:04]} 32. Qxb6 {[%clk 0:00:41]}  Rxb6 {[%clk 0:00:04]} 33. Re1 {[%clk 0:00:41]}  Rbb8 {[%clk 0:00:01]} 34. Ka2 {[%clk 0:00:40]}  g6 {[%clk 0:00:02]} 35. Be4 {[%clk 0:00:36]}  Kg7 {[%clk 0:00:02]} 36. Bc6 {[%clk 0:00:36]}  Kf6 {[%clk 0:00:01]} 37. Ka3 {[%clk 0:00:35]}  h5 {[%clk 0:00:02]} 38. Ka4 {[%clk 0:00:35]}  h4 {[%clk 0:00:02]} 39. Kxa5 {[%clk 0:00:35]}  g5 {[%clk 0:00:02]} 40. Rf1+ {[%clk 0:00:34]}  Kg6 {[%clk 0:00:02]} 41. b6 {[%clk 0:00:32]}  g4 {[%clk 0:00:01]} 42. b7 {[%clk 0:00:29]}  f5 {[%clk 0:00:01]} 43. Kb6 {[%clk 0:00:24]}  Kg5 {[%clk 0:00:01]} 44. Kc7 {[%clk 0:00:24]}  f4 {[%clk 0:00:01]} 45. b4 {[%clk 0:00:19]}  f3 {[%clk 0:00:02]} 46. b5 {[%clk 0:00:18]}  h3 {[%clk 0:00:02]} 47. b6 {[%clk 0:00:16]}  h2 {[%clk 0:00:02]} 48. Bd5 {[%clk 0:00:14]}  Kf4 {[%clk 0:00:02]} 49. Bc6 {[%clk 0:00:10]}  Kg3 {[%clk 0:00:03]} 50. Rd1 {[%clk 0:00:06]}  Kg2 {[%clk 0:00:03]} 51. Rd4 {[%clk 0:00:03]}  h1=Q {[%clk 0:00:02]} 52. Rxg4+ {[%clk 0:00:02]}  Kf2 {[%clk 0:00:02]} 53. Rf4 {[%clk 0:00:02]}  Qh2 {[%clk 0:00:03]} 54. Bxf3 {[%clk 0:00:01]}  Qxf4+ {[%clk 0:00:02]} 55. Kc6 {[%clk 0:00:01]}  Qxf3+ {[%clk 0:00:03]} 56. Kc5 {[%clk 0:00:02]}  Qxb7 {[%clk 0:00:03]} 57. Kc4 {[%clk 0:00:03]}  Qxb6 {[%clk 0:00:04]} 58. Kc3 {[%clk 0:00:04]}  Rxd7 {[%clk 0:00:04]} 59. Kc2 {[%clk 0:00:04]}  Rc8# {[%clk 0:00:04]} 0-1


[Site "https://www.chess.com"]

[Event "Late Titled Tuesday Blitz February 8 2022"]
[White "Carbone, Diego"]
[Black "Buscar, Michael"]
[WhiteFideId "3002179"]
[BlackFideId "2603616"]
[WhiteElo "2199"]
[BlackElo "2010"]
[Result "0-1"]
[Round "06"]
[TimeControl "180+1"]
[Date "2022.02.09"]
[WhiteClock "0:00:03"]
[BlackClock "0:00:06"]

1. d4 {[%clk 0:03:00]}  Nf6 {[%clk 0:02:58]} 2. c4 {[%clk 0:03:00]}  e6 {[%clk 0:02:58]} 3. Nc3 {[%clk 0:03:00]}  d5 {[%clk 0:02:58]} 4. Nf3 {[%clk 0:02:59]}  Be7 {[%clk 0:02:55]} 5. g3 {[%clk 0:02:59]}  a6 {[%clk 0:02:55]} 6. Bg2 {[%clk 0:02:56]}  O-O {[%clk 0:02:54]} 7. O-O {[%clk 0:02:55]}  c6 {[%clk 0:02:50]} 8. b3 {[%clk 0:02:53]}  Nbd7 {[%clk 0:02:41]} 9. Bb2 {[%clk 0:02:52]}  Re8 {[%clk 0:02:39]} 10. Qc2 {[%clk 0:02:52]}  Bd6 {[%clk 0:02:40]} 11. e4 {[%clk 0:02:33]}  dxe4 {[%clk 0:02:36]} 12. Nxe4 {[%clk 0:02:32]}  Nxe4 {[%clk 0:02:33]} 13. Qxe4 {[%clk 0:02:33]}  c5 {[%clk 0:02:23]} 14. dxc5 {[%clk 0:02:32]}  Nxc5 {[%clk 0:02:20]} 15. Qe3 {[%clk 0:01:58]}  Qc7 {[%clk 0:02:12]} 16. Rfd1 {[%clk 0:01:54]}  Bf8 {[%clk 0:02:08]} 17. Be5 {[%clk 0:01:51]}  Qb6 {[%clk 0:01:55]} 18. Rab1 {[%clk 0:01:43]}  a5 {[%clk 0:01:54]} 19. a3 {[%clk 0:01:38]}  Ra6 {[%clk 0:01:52]} 20. b4 {[%clk 0:01:37]}  axb4 {[%clk 0:01:52]} 21. axb4 {[%clk 0:01:38]}  Nd7 {[%clk 0:01:49]} 22. c5 {[%clk 0:01:35]}  Qa7 {[%clk 0:01:41]} 23. Bd4 {[%clk 0:01:27]}  Ra3 {[%clk 0:01:38]} 24. c6 {[%clk 0:01:13]}  Qa4 {[%clk 0:01:36]} 25. cxd7 {[%clk 0:01:07]}  Rxe3 {[%clk 0:01:36]} 26. dxe8=Q {[%clk 0:01:05]}  Qxe8 {[%clk 0:01:36]} 27. Bxe3 {[%clk 0:01:04]}  Bd7 {[%clk 0:01:36]} 28. Ne5 {[%clk 0:01:03]}  Ba4 {[%clk 0:01:33]} 29. Rd2 {[%clk 0:00:49]}  f6 {[%clk 0:01:23]} 30. Nc4 {[%clk 0:00:40]}  Qg6 {[%clk 0:01:12]} 31. Rbb2 {[%clk 0:00:29]}  b5 {[%clk 0:00:48]} 32. Nd6 {[%clk 0:00:23]}  h5 {[%clk 0:00:42]} 33. Be4 {[%clk 0:00:21]}  Qg4 {[%clk 0:00:38]} 34. f3 {[%clk 0:00:16]}  Qh3 {[%clk 0:00:36]} 35. Nb7 {[%clk 0:00:14]}  h4 {[%clk 0:00:27]} 36. Bf2 {[%clk 0:00:14]}  f5 {[%clk 0:00:20]} 37. Bc6 {[%clk 0:00:13]}  Kf7 {[%clk 0:00:20]} 38. Nc5 {[%clk 0:00:13]}  hxg3 {[%clk 0:00:17]} 39. hxg3 {[%clk 0:00:12]}  Be7 {[%clk 0:00:17]} 40. Nxa4 {[%clk 0:00:10]}  bxa4 {[%clk 0:00:17]} 41. Bxa4 {[%clk 0:00:11]}  Bf6 {[%clk 0:00:17]} 42. Rbc2 {[%clk 0:00:09]}  Qh5 {[%clk 0:00:17]} 43. Bc6 {[%clk 0:00:08]}  Be5 {[%clk 0:00:16]} 44. f4 {[%clk 0:00:06]}  Bf6 {[%clk 0:00:12]} 45. b5 {[%clk 0:00:07]}  g5 {[%clk 0:00:10]} 46. b6 {[%clk 0:00:07]}  gxf4 {[%clk 0:00:10]} 47. gxf4 {[%clk 0:00:07]}  Qg4+ {[%clk 0:00:10]} 48. Bg2 {[%clk 0:00:08]}  Qxf4 {[%clk 0:00:07]} 49. b7 {[%clk 0:00:07]}  Be5 {[%clk 0:00:08]} 50. Rd7+ {[%clk 0:00:06]}  Kf6 {[%clk 0:00:08]} 51. Rc8 {[%clk 0:00:04]}  Qb4 {[%clk 0:00:06]} 52. Rdd8 {[%clk 0:00:02]}  f4 {[%clk 0:00:05]} 53. b8=Q {[%clk 0:00:01]}  Bxb8 {[%clk 0:00:04]} 54. Rxb8 {[%clk 0:00:02]}  Qa3 {[%clk 0:00:04]} 55. Rf8+ {[%clk 0:00:03]}  Ke5 {[%clk 0:00:04]} 56. Rfd8 {[%clk 0:00:02]}  Qc1+ {[%clk 0:00:03]} 57. Bf1 {[%clk 0:00:03]}  f3 {[%clk 0:00:03]} 58. Bd4+ {[%clk 0:00:03]}  Ke4 {[%clk 0:00:03]} 59. Rb4 {[%clk 0:00:02]}  Qg5+ {[%clk 0:00:03]} 60. Kf2 {[%clk 0:00:01]}  Qd2+ {[%clk 0:00:02]} 61. Kg3 {[%clk 0:00:02]}  Qxb4 {[%clk 0:00:03]} 62. Kh3 {[%clk 0:00:02]}  e5 {[%clk 0:00:02]} 63. Bf2 {[%clk 0:00:02]}  Qb2 {[%clk 0:00:02]} 64. Re8 {[%clk 0:00:02]}  Qxf2 {[%clk 0:00:02]} 65. Re7 {[%clk 0:00:01]}  Qxf1+ {[%clk 0:00:03]} 66. Kg3 {[%clk 0:00:01]}  Qg2+ {[%clk 0:00:03]} 67. Kh4 {[%clk 0:00:01]}  f2 {[%clk 0:00:04]} 68. Kh5 {[%clk 0:00:01]}  f1=Q {[%clk 0:00:05]} 69. Rxe5+ {[%clk 0:00:02]}  Kxe5 {[%clk 0:00:05]} 70. Kh6 {[%clk 0:00:03]}  Qfh1# {[%clk 0:00:06]} 0-1


[Site "https://www.chess.com"]